Cogmind - Beta 16 @@@ ROGUE MODE // 2025.11.25 @ 16:21:03 Player: jes Result: Core destroyed Performance ------------- Evolutions (0) 0 Regions Visited (2) 400 Robots Destroyed (3) 15 Value Destroyed (120) 120 Prototype IDs (0) 0 Alien Tech Used (0) 0 Bonus (0) 0 TOTAL SCORE: 535 Bonus ------- None Cogmind --------- Core Integrity 0/250 Matter 289/300 Energy 100/100 System Corruption 26% Temperature Cool (0) Movement Core (50) Location -10/Subcaves Parts ------- > --- POWER (1) -------- (None) > --- PROPULSION (2) --- Light Treads Light Treads > --- UTILITY (2) ------ (None) > --- WEAPON (2) ------- Small Laser > --- INVENTORY (5) ---- Light Ion Engine Subdweller Power Source Aluminum Leg Wheel Small Storage Unit Peak State ------------ > --- POWER ------------ Ion Engine > --- PROPULSION ------- Aluminum Leg Aluminum Leg > --- UTILITY ---------- Medium Storage Unit Subdweller Optics > --- WEAPON ----------- Medium Laser Light Assault Rifle > --- INVENTORY -------- Light Ion Engine Light Treads Light Treads Wheel Compact Wheel Small Storage Unit Small Laser [Rating: 8] Favorites ----------- Power Ion Engine Engine Ion Engine Propulsion Aluminum Leg Treads Light Treads Leg Aluminum Leg Utility Medium Storage Unit Device Subdweller Optics Storage Medium Storage Unit Weapon Light Assault Rifle Energy Gun Medium Laser Ballistic Gun Light Assault Rifle Build | -11 -10 -10 ------- Run | Yrd Mat Sub Slots Evolved . | . . . Power . | . . . Propulsion . | . . . Utility . | . . . Weapon . | . . . Parts Attached 7 | . 1 6 Power . | . . . Engine . | . . . Core . | . . . Reactor . | . . . Propulsion 2 | . . 2 Treads 2 | . . 2 Leg . | . . . Wheel . | . . . Hover . | . . . Flight . | . . . Utility 3 | . 1 2 Device 2 | . . 2 Storage 1 | . 1 . Processor . | . . . Hackware . | . . . Protection . | . . . Artifact . | . . . Weapon 2 | . . 2 Energy Gun 1 | . . 1 Energy Cannon . | . . . Ballistic Gun 1 | . . 1 Ballistic Cannon . | . . . Launcher . | . . . Special Weapon . | . . . Impact Weapon . | . . . Slashing Weapon . | . . . Piercing Weapon . | . . . Special Melee Weapon . | . . . Unidentified Prototypes . | . . . Parts Lost 2 | . . 2 Power . | . . . Propulsion . | . . . Utility 1 | . . 1 Weapon 1 | . . 1 Highest Loss Streak 1 | . . 1 To Critical Strikes 1 | . . 1 Average Backups 7 | . 6 7 Power 1 | . 1 1 Propulsion 3 | . 4 3 Utility . | . . 1 Weapon . | . 1 . Tool/Special . | . . . Unused Backups 11 | . 5 6 Power 3 | . 1 2 Propulsion 4 | . 2 2 Utility 1 | . . 1 Weapon 3 | . 2 1 Tool/Special . | . . . Average Slot Usage (%) 91 | . 85 92 Engine 13 | . 14 13 Treads 13 | . . 15 Leg 14 | . 28 12 Device 7 | . . 8 Storage 13 | . 14 13 Energy Gun 15 | . 14 15 Ballistic Gun 12 | . 14 12 Peak Build Rating 8 | . 7 8 Average Rating 6 | . 6 7 On Entrance 6 | 6 6 6 Avg Prop Armor Cover (%) 32 | . . 32 Naked Turns . | . . . Heaviest Build 20 | 13 18 20 Greatest Support 40 | 20 20 40 Greatest Overweight (x) . | . . . Average Overweight (x) . | . . . Largest Inventory Capacity 10 | . 10 10 Average Capacity 9 | . 9 9 Most Carried 8 | . 7 8 Average Carried 7 | . 6 7 Final Capacity 10 | 8 10 5 Final Carried 7 | 6 7 5 Class Distribution -------------------- 100% | Mutant Dominant Class ---------------- Mutant | -10/Materials Mutant | -10/Subcaves Resources | -11 -10 -10 ----------- Run | Yrd Mat Sub Matter Collected 279 | 182 . 97 Remotely . | . . . Salvage Created 125 | . . 125 Parts 8 | . . 8 Haulers Intercepted . | . . . Recyclers Shooed . | . . . Parts Field Recycled . | . . . Retrieved Matter . | . . . Parts Self-Destructed 5 | . . 5 Prevented . | . . . Parts Restored . | . . . Kills | -11 -10 -10 ------- Run | Yrd Mat Sub Combat Hostiles Destroyed 3 | . . 3 Guns 3 | . . 3 Classes Destroyed 1 | . . 1 Subdweller 3 | . . 3 Best Kill Streak 1 | . . 1 Combat Bots Only 1 | . . 1 Max Kills in Single Turn 1 | . . 1 Gunslinging . | . . . Exploded . | . . . Melee . | . . . Uniques/NPCs Destroyed . | . . . Combat | -11 -10 -10 -------- Run | Yrd Mat Sub Hostile Shots Fired 26 | . . 26 Missed 12 | . . 12 Hits 14 | . . 14 Projectile 14 | . . 14 Critical Strikes 1 | . . 1 Damage Taken 791 | . . 791 Core 255 | . . 255 Absorbed by Shields . | . . . Core Remaining (%) 100 | 100 . . Volleys Fired 61 | . 1 60 Largest 2 | . 2 2 Hottest 90 | . 70 90 Shots Fired 122 | . 2 120 Gun 122 | . 2 120 Cannon . | . . . Launcher . | . . . Special . | . . . Kinetic 24 | . 1 23 Thermal 98 | . 1 97 Explosive . | . . . Electromagnetic . | . . . Robot Hit Streak 9 | . . 9 Robot Miss Streak 2 | . 2 1 Penetration Max . | . . . Secondary Targets . | . . . Shots Hit Robots 28 | . . 28 Core Hits 9 | . . 9 Critical Kills . | . . . Critical Parts Destroyed . | . . . Critical Strikes 1 | . . 1 Burn 1 | . . 1 Melee Attacks . | . . . Impact . | . . . Slashing . | . . . Piercing . | . . . Sneak Attacks . | . . . Combat Hostiles . | . . . Follow-up Attacks . | . . . Damage Inflicted 545 | . . 545 Guns 288 | . . 288 Cannons . | . . . Explosions . | . . . Melee . | . . . Ramming 257 | . . 257 Kinetic 115 | . . 115 Thermal 173 | . . 173 Explosive . | . . . Electromagnetic . | . . . Impact . | . . . Slashing . | . . . Piercing . | . . . Highest Corruption 26 | . . 26 Average Corruption 13 | . . 13 Corruption Purged . | . . . Corruption Blocked . | . . . Effects 2 | . . 2 Message Errors 1 | . . 1 Matter Fused 1 | . . 1 Overload Shots . | . . . Overflow Damage . | . . . Projectiles . | . . . Explosions . | . . . Melee . | . . . Knockbacks . | . . . Impact . | . . . Kinetic . | . . . Secondary . | . . . Self-Inflicted Damage 257 | . . 257 Shots . | . . . Rammed . | . . . Targets Rammed . | . . . Kicked . | . . . Crushed . | . . . Highest Temperature 30 | . 30 4 Average Temperature 8 | . 19 3 Received Heat Transfer 111 | . . 111 Siege Activations . | . . . Martial Activations . | . . . Shielding Activations . | . . . Robots Disrupted . | . . . Combat Hostiles . | . . . Robots Corrupted . | . . . Combat Hostiles . | . . . Parts Fried . | . . . Impact Corruptions . | . . . Robots Melted . | . . . Combat Hostiles . | . . . Parts Melted . | . . . Heat Transferred 568 | . . 568 Parts Sabotaged . | . . . Parts Stolen . | . . . Parts Stripped . | . . . Power Chain Reactions . | . . . Alert | -11 -10 -10 ------- Run | Yrd Mat Sub Maximum Alert Level . | . . . Low Security (%) 100 | . 100 . Level 1 . | . . . Level 2 . | . . . Level 3 . | . . . Level 4 . | . . . Level 5 . | . . . High Security . | . . . Max Security . | . . . Peak Influence . | . . . Initial . | . . . Average . | . . . Influence Increases . | . . . Influence Decreases . | . . . Squads Dispatched 1 | . 1 . Investigation . | . . . Extermination . | . . . Reinforcement 1 | . 1 . Assault . | . . . Garrison . | . . . Intercept . | . . . Searches Triggered . | . . . Construction Impeded . | . . . Haulers Reinforced . | . . . Active Scanning Responses . | . . . Cargo Convoy Interrupts . | . . . Stealth | -11 -10 -10 --------- Run | Yrd Mat Sub Distress Signals . | . . . Communications Jammed . | . . . Distress Signals . | . . . Times Spotted 4 | . 1 3 Peak Tracking Total 2 | . 1 2 Tactical Retreats . | . . . Traps | -11 -10 -10 ------- Run | Yrd Mat Sub Traps Triggered . | . . . Indirectly . | . . . Trap Hack Attempts . | . . . Triggered . | . . . Disarmed . | . . . Reprogrammed . | . . . Reused . | . . . Traps Extracted . | . . . Installed . | . . . Triggered . | . . . Machines | -11 -10 -10 ---------- Run | Yrd Mat Sub Machines Disabled . | . . . Max in Single Turn . | . . . Machines Repaired . | . . . Machines Dismantled . | . . . Machines Sabotaged . | . . . Overloaded Fab Kills . | . . . Hacking | -11 -10 -10 --------- Run | Yrd Mat Sub Machines Accessed . | . . . Terminals . | . . . Fabricators . | . . . Repair Stations . | . . . Recycling Units . | . . . Scanalyzers . | . . . Garrison Access . | . . . Total Hacks . | . . . Successful . | . . . Failed . | . . . Catastrophic . | . . . Database Lockouts . | . . . Manual . | . . . Terminals . | . . . Fabricators . | . . . Repair Stations . | . . . Recycling Units . | . . . Scanalyzers . | . . . Garrison Access . | . . . Terminal Hacks . | . . . Fabricator Hacks . | . . . Repair Station Hacks . | . . . Recycling Unit Hacks . | . . . Scanalyzer . | . . . Garrison Access Hacks . | . . . Unauthorized Hacks . | . . . Terminals . | . . . Fabricators . | . . . Repair Stations . | . . . Recycling Units . | . . . Scanalyzers . | . . . Garrison Access . | . . . Data Cores Recovered . | . . . Used . | . . . Hacking Detections . | . . . Full Trace Events . | . . . Feedback Events . | . . . Feedback Blocked . | . . . Robot Schematics Acquired . | . . . Robots Built . | . . . Authchips . | . . . Time . | . . . Total Robot Build Rating . | . . . Part Schematics Acquired . | . . . Parts Built . | . . . Authchips . | . . . Time . | . . . Total Part Build Rating . | . . . Part Studies Acquired . | . . . Parts Repaired . | . . . Time . | . . . Parts Recycled . | . . . Recycled Matter . | . . . Retrieved Matter . | . . . Retrieved Components . | . . . Parts Scanalyzed . | . . . Part Schematics Acquired . | . . . Parts Damaged . | . . . Bothacking | -11 -10 -10 ------------ Run | Yrd Mat Sub Used RIF Installer . | . . . Robots Hacked . | . . . Non-combat . | . . . Combat . | . . . Robot Hacks Applied . | . . . Relay Couplers Released . | . . . Fabnet Peak Effective % . | . . . Robots Rewired . | . . . Allies Hacked . | . . . Hacks Repelled . | . . . Allies | -11 -10 -10 -------- Run | Yrd Mat Sub Total Allies . | . . . Largest Group . | . . . Highest-Rated Group . | . . . Highest-Rated Ally . | . . . Total Orders . | . . . Ally Attacks . | . . . Total Damage . | . . . Kills . | . . . Allies Corrupted . | . . . Allies Melted . | . . . Intel | -11 -10 -10 ------- Run | Yrd Mat Sub Active Infowar (turns) 805 | . . 805 Optics 805 | . . 805 Robot Analysis Total . | . . . Derelict Logs Recovered . | . . . Drone Launches . | . . . Drone Recoveries . | . . . Exploration | -11 -10 -10 ------------- Run | Yrd Mat Sub Turns Passed 1601 | . 221 1380 Spaces Moved 783 | 1 34 748 Core 20 | . . 20 Treads 282 | . . 282 Legs 481 | 1 34 446 Wheels . | . . . Hover . | . . . Flight . | . . . Fastest Speed 50 | 120 120 50 Average Speed 132 | 120 120 133 Slowest Speed 160 | 120 120 160 Overloaded Moves . | . . . Propulsion Burnouts . | . . . Robots Hopped . | . . . Potential Cave-ins . | . . . Cave-ins Triggered . | . . . Exploration Rate (%) 8 | 2 7 15 Regions Visited 2 Branch Regions 1 Pre-discovered Areas . | . . . Known Exits Taken . | . . . Unknown Exits Taken 2 | 1 1 . Scrap Searched . | . . . Spaces Dug . | . . . Terrain Destroyed . | . . . Melee . | . . . Projectile . | . . . AOE . | . . . Terrain Rammed 39 | . . 39 Walls Destroyed . | . . . Machines Disabled . | . . . Actions | -11 -10 -10 --------- Run | Yrd Mat Sub Total 1227 | . 212 1015 Wait 333 | . 176 157 Move 781 | . 33 748 Hop . | . . . Pick Up 1 | . . 1 Fast Attach 3 | . 1 2 Attach 1 | . . 1 Detach 2 | . 1 1 Swap 3 | . . 3 Drop 4 | . . 4 Fire 61 | . 1 60 Melee . | . . . Ram 38 | . . 38 Kick . | . . . Crush . | . . . Escape Stasis . | . . . Rewire . | . . . Trap . | . . . Miscellaneous . | . . . Route ------- -11/Scrapyard -10/Materials -10/Subcaves History --------- Turn | Location | Event 1 | -11/Scrapyard | Discovered new exit (range 0) 1 | -11/Scrapyard | Entered Materials 198 | -10/Materials | Discovered new exit (range 9) 222 | -10/Materials | Entered Subcaves 223 | -10/Subcaves | Approached by a straggling Scientist 307 | -10/Subcaves | Build established: Mutant 622 | -10/Subcaves | Shifting Twisted Machinery released Sub. Laser 690 | -10/Subcaves | Shifting Twisted Machinery released Sub. Monowheel 1582 | -10/Subcaves | Core integrity fell below 50% 1583 | -10/Subcaves | System corruption reached 10% 1592 | -10/Subcaves | Core integrity fell below 20% 1602 | -10/Subcaves | Core destroyed Last Messages --------------- 01591_ Slammed into Twisted Machinery. 01591_ Destabilizing: System corrupted (+2). 01592_ Slammed into Twisted Machinery. 01594_ Destabilizing: Core damaged (-10). 01595_ Slammed into Twisted Machinery. 01595_ Destabilizing: System corrupted (+1). 01595_ Destabilizing: System corrupted (+2). 01596_ Slammed into Twisted Machinery. 01596_ Destabilizing: System corrupted (+1). 01597_ Slammed into Twisted Machinery. 01597_ Destabilizing: Core damaged (-12). 01598_ Subatomizers dissect the Ion Engine. 01598_ Slammed into Twisted Machinery. 01598_ Destabilizing: System corrupted (+1). 01599_ System corrupted: Matter fused (-6). 01599_ Slammed into Twisted Machinery. 01599_ Destabilizing: Core damaged (-12). 01600_ Slammed into Twisted Machinery. 01601_ Destabilizing: System corrupted (+1). 01602_ Slammed into Twisted Machinery. Map ----- +----------------------------------------------------+ | | | | | ???????????????????????????????????????????????? | | ???????????????????????????????????????????????? | | ???????????????????????????????????????????????? | | ???????????????????????????????????????????????? | | ???????????????????????????????????????????????? | | ???????????????????????????????????????????????? | | ???????????????????????????????????????????????? | | ???????????????????????????????????????????????? | | ???????????????????????????????????????????????? | | ???????????????????????????????????????????????? | | ???????????????????????????????????????????????? | | ???????????????????????????????????????????????? | | ???????????????????????????????????????????????? | | ???????????????????????????????????????????????? | | #??????????????????????????????????????????????? | | #########??????????????????????????????????????? | | ## #??????????????????????????????????????? | | ##??????#####??????????????????????????? | | #?###### ##?????????????????????????? | | #?# #?######??????????????????? | | #?# #?# ####???????????????? | | ## ##?# ##### "#???????????????? | | ##### #### #### """#???????????????? | | ????# ## [ @"""""#???????????????? | | #???# =!* """" ""#???????????????? | | ##### = ##""" ="" #??????????????? | | ### ### """"""#?????????????? | | ##?##### #?# """""""#?????????????? | | #??????#####? """""#?????????????? | | ####???????????# ## """"#??????????????? | | # ##?#######??###?##### """????????????????? | | ### #### #### ##???? """????????????????? | | ??# ## & ##??? ???????????????? | | ??# %& "#???"[ ##???????????????? | | ??# ### ### "####"" #????????????????? | | ??# ##?####?## "" " "#????????????????? | | ### ###????????##"" "#????????????????? | | # ##?##????????? #???????????????? | | #?# #?????????# ### #???????????????? | | ## ##? #??????????####??? #???????????????? | | ####### ##??????????????????#???????????????? | | ###### ##?????????????????????????????????? | | # ## ##????????????????????????????????? | | """"" ##???????????????????????????????? | | """"""""" #???????????????????????????????? | | "#"" # ## #??????????????????????????????? | | ""###### ##???????????????????????????????????? | | ##???## #????????????????????????????????????? | +----------------------------------------------------+ Best States ------------- Heat Dissipation 25 Energy Generation 10 Energy Capacity 250 Matter Stores 300 Matter Capacity 300 Sight Range 21 Terrain Scan Density 10 Evasion (%) 55 Recoil Reduction 2 Item Schematics ----------------- None Robot Schematics ------------------ None Fabricated ------------ Nothing Repaired ---------- Nothing Studied --------- None Alien Tech Used ----------------- None Achievements -------------- None Challenges ------------ None Game ------ Seed MicrowarpShockTriangulator Manual? 0 Play Time 00:12:54 Cumulative 136.2 hours Start 2025.11.25 @ 16:09:26 End 2025.11.25 @ 16:21:03 Sessions 1 Manual Loads 0 Difficulty Rogue Special Mode None Game No. 67 Rogue 67 Adventurer 0 Explorer 0 Win Type - Total 0 Types 0/0/0/0/0/0/0/0/0/0 Lore% 19 Gallery% 36 Achievement% 27 Wizard Run 0 Options --------- Layout 1 ASCII 1 Keyboard 1 Movement Vi Keybinds 0 Fullscreen 2 Font 24/Terminus Map View 50x35 Zoom Use 0% Tactical HUD 1 Map Filters NONE Filters NONE Steam 1 RUN: 6d325050-9c77-4d4e-9511-66d64f6f729b